bitfinex-derivatives/quotes_SOLF0:USTF0_20241203
["timestamp","ask_amount","ask_price","bid_price","bid_amount"]
[1733222531101,2.2145,225.75,225.71,1.10835972]
[1733222531298,2.2145,225.75,225.72,1.10835972]
[1733222531598,2.2145,225.75,225.7,6.2758]
[1733222531804,2.06,225.81,225.71,1.10835972]
[1733222532100,2.06,225.81,225.72,1.10835972]
[1733222532101,7.96957508,225.78,225.72,1.10835972]
[1733222532299,7.96957508,225.78,225.71,7.96957508]
[1733222532501,7.96957508,225.78,225.72,1.10835873]
[1733222532693,7.96957508,225.78,225.71,7.96957508]
[1733222532999,2.2145,225.75,225.71,7.96957508]
[1733222533300,10.02957508,225.81,225.73,7.96957508]
[1733222533602,2.06,225.81,225.73,7.96957508]
[1733222533794,2.2142,225.78,225.74,3.40645961]
[1733222533998,10.02957508,225.81,225.73,10.18417508]
[1733222534697,7.96957508,225.81,225.73,10.18417508]
[1733222535201,2.2142,225.78,225.73,10.18417508]
[1733222535401,7.96957508,225.81,225.73,10.18417508]
[1733222536404,2.2142,225.78,225.73,10.18417508]
[1733222536709,7.96957508,225.81,225.73,10.18417508]
[1733222537403,7.96957508,225.81,225.7,4.0609]
[1733222537404,7.96957508,225.83,225.75,7.96957508]
[1733222537600,2.214,225.8,225.75,7.96957508]
[1733222538002,2.214,225.8,225.75,10.18397508]
[1733222539206,2.2141,225.79,225.75,7.96957508]
[1733222539806,2.2142,225.78,225.74,12.24407508]
[1733222540002,7.96957508,225.81,225.74,2.06]
[1733222540205,7.96957508,225.81,225.7,4.0609]
[1733222540206,7.96957508,225.79,225.71,2.06]
[1733222540704,7.96957508,225.77,225.71,2.06]
[1733222540901,2.2147,225.73,225.71,2.06]
[1733222541108,2.2147,225.73,225.7,4.0609]
[1733222542711,7.96957508,225.75,225.54,2.26860987]
[1733222542905,7.96957508,225.73,225.66,7.96957508]
[1733222543704,2.2151,225.69,225.65,2.06]
[1733222544005,2.2151,225.69,225.66,7.96957508]
[1733222544210,2.2149,225.71,225.66,10.18487508]
[1733222544414,7.96957508,225.75,225.66,10.18487508]
[1733222544711,2.2151,225.69,225.66,2.2153]
[1733222545911,2.2149,225.71,225.66,2.2153]
[1733222546607,7.96957508,225.73,225.66,2.2153]
[1733222548012,2.2149,225.71,225.66,2.2153]
[1733222548614,2.2149,225.71,225.67,7.96957508]
[1733222549014,2.2147,225.73,225.69,2.215]
[1733222549212,2.2147,225.73,225.69,10.18457508]
[1733222549407,2.2145,225.75,225.69,7.96957508]
[1733222549607,2.2145,225.75,225.71,7.96957508]
[1733222549811,7.96957508,225.79,225.71,7.96957508]
[1733222550913,2.2144,225.76,225.72,2.2147]
[1733222553711,2.2149,225.71,225.67,4.8775]
[1733222553919,7.96957508,225.77,225.68,10.02957508]
[1733222554315,7.96957508,225.77,225.7,7.96957508]
[1733222555418,7.96957508,225.77,225.7,10.18447508]
[1733222556923,2.2146,225.74,225.7,10.18447508]
[1733222559621,2.2147,225.73,225.69,2.215]
[1733222560530,2.2148,225.72,225.69,2.215]
[1733222561532,2.2147,225.73,225.7,2.215]
[1733222561935,7.96957508,225.77,225.68,10.02957508]
[1733222562136,2.2147,225.73,225.69,2.215]
[1733222562632,7.96957508,225.77,225.68,2.06]
[1733222562831,7.96957508,225.77,225.68,10.02957508]
[1733222563238,7.96957508,225.77,225.68,12.24467508]
[1733222563239,2.2149,225.71,225.68,12.24467508]
[1733222563536,7.96957508,225.77,225.68,10.02957508]
[1733222564035,2.2147,225.73,225.7,7.96957508]
[1733222564238,2.06,225.78,225.7,7.96957508]
[1733222564638,2.2145,225.75,225.71,2.2148]
[1733222565339,2.2144,225.76,225.72,2.2147]
[1733222565637,2.06,225.78,225.72,2.2147]
[1733222565936,2.2144,225.76,225.72,2.2147]
[1733222567331,2.2145,225.75,225.72,2.2147]
[1733222567839,2.2145,225.75,225.71,2.2148]
[1733222568034,2.2147,225.73,225.67,2.6623]
[1733222568344,7.96957508,225.75,225.68,2.06]
[1733222568537,7.96957508,225.77,225.69,7.96957508]
[1733222568739,7.96957508,225.77,225.69,10.18457508]
[1733222568937,7.96957508,225.77,225.69,7.96957508]
[1733222569140,7.96957508,225.75,225.68,2.06]
[1733222569542,2.2148,225.72,225.68,4.2751]
[1733222569840,2.2148,225.72,225.68,2.2151]
[1733222573844,2.215,225.7,225.67,5.6489]
[1733222574548,2.215,225.7,225.67,4.2752]
[1733222576945,7.96957508,225.73,225.67,2.06]
[1733222577146,2.2149,225.71,225.68,2.2151]
[1733222577747,7.96957508,225.73,225.67,4.2752]
[1733222577748,2.2148,225.72,225.67,4.2752]
[1733222577943,7.96957508,225.73,225.67,4.2752]
[1733222578647,2.2149,225.71,225.68,2.2151]
[1733222579149,2.2149,225.71,225.69,2.215]
[1733222580043,7.96957508,225.73,225.69,2.215]
[1733222580242,2.2148,225.72,225.69,2.215]
[1733222580843,2.06,225.78,225.7,7.96957508]
[1733222581349,2.2144,225.76,225.72,2.2147]
[1733222582647,2.2145,225.75,225.72,2.2147]
[1733222583747,2.2146,225.74,225.7,2.2149]
[1733222583943,7.96957508,225.77,225.69,7.96957508]
[1733222584553,2.2146,225.74,225.69,10.18457508]
[1733222584752,2.2146,225.74,225.69,7.96957508]
[1733222585652,2.2146,225.74,225.7,2.2149]
[1733222587051,2.2144,225.77,225.73,2.2146]
[1733222587250,7.96957508,225.78,225.69,7.96957508]
[1733222587557,7.96957508,225.78,225.71,7.96957508]
[1733222587956,10.18387508,225.78,225.71,7.96957508]
[1733222588159,10.18387508,225.78,225.72,2.06]
[1733222588360,2.214,225.8,225.75,7.96957508]
[1733222588952,2.214,225.8,225.76,2.2143]
[1733222592663,2.2139,225.81,225.77,2.2142]
[1733222592963,7.96957508,225.83,225.75,7.96957508]
[1733222593653,2.2139,225.81,225.78,2.2141]
[1733222593859,7.96957508,225.83,225.75,7.96957508]
[1733222594763,2.2138,225.82,225.77,2.2142]
[1733222595060,2.2138,225.82,225.75,7.96957508]
[1733222595461,2.2139,225.81,225.77,2.2143]
[1733222597757,7.96957508,225.83,225.77,2.2143]
[1733222598758,2.214,225.8,225.68,1.2951]
[1733222598958,7.96957508,225.79,225.72,2.2147]
[1733222599171,7.96957508,225.79,225.72,4.2747]
[1733222599765,2.2143,225.77,225.73,2.2146]
[1733222601065,2.2143,225.77,225.73,10.18417508]
[1733222602661,7.96957508,225.86,225.75,7.96957508]
[1733222602862,7.96957508,225.86,225.79,7.96957508]
[1733222603466,2.2137,225.83,225.79,7.96957508]
[1733222604468,2.2137,225.83,225.79,10.18367508]
[1733222605566,2.2138,225.82,225.79,7.96957508]
[1733222607067,2.2139,225.81,225.79,7.96957508]
[1733222607270,2.2139,225.81,225.77,12.24387508]
[1733222609876,2.2139,225.81,225.79,7.96957508]
[1733222610269,7.96957508,225.85,225.79,7.96957508]
[1733222610465,2.2138,225.83,225.79,7.96957508]
[1733222610972,2.2138,225.83,225.79,10.18357508]
[1733222611173,2.2136,225.84,225.79,7.96957508]
[1733222611471,7.96957508,225.87,225.8,2.214]
[1733222612171,2.2137,225.83,225.79,7.96957508]
[1733222612472,2.2137,225.83,225.79,10.18367508]
[1733222612675,7.96957508,225.87,225.79,7.96957508]
[1733222613566,7.96957508,225.87,225.79,10.18357508]
[1733222614177,2.2137,225.83,225.79,10.18357508]
[1733222616474,7.96957508,225.88,225.79,7.96957508]
[1733222616674,2.2138,225.82,225.79,7.96957508]
[1733222617576,7.96957508,225.88,225.79,7.96957508]
[1733222617775,2.2137,225.83,225.79,7.96957508]
[1733222618171,2.2137,225.83,225.79,10.18357508]
[1733222619170,2.2138,225.82,225.79,10.18357508]
[1733222619676,7.96957508,225.88,225.79,10.18357508]
[1733222619877,2.2137,225.84,225.81,10.18347508]
[1733222620072,7.96957508,225.92,225.83,7.96957508]
[1733222620276,7.96957508,225.92,225.85,7.96957508]
[1733222621975,2.2132,225.89,225.85,7.96957508]
[1733222627681,7.96957508,225.92,225.84,2.2136]
[1733222627876,2.2132,225.88,225.84,10.18317508]
[1733222630482,2.2132,225.88,225.85,2.2135]
[1733222630884,7.96957508,225.94,225.86,7.96957508]
[1733222631390,2.2128,225.92,225.87,2.2133]
[1733222631585,7.96957508,225.94,225.87,2.2133]
[1733222631986,2.2128,225.92,225.88,7.96957508]
[1733222632190,2.2128,225.92,225.88,10.02957508]
[1733222632389,7.96957508,225.96,225.88,10.02957508]
[1733222633290,2.2127,225.93,225.89,2.213]
[1733222634597,7.96957508,225.96,225.88,10.02957508]
[1733222634797,7.96957508,225.96,225.9,2.213]
[1733222634798,2.2126,225.94,225.9,2.213]
[1733222636899,2.2126,225.94,225.9,10.18257508]
[1733222637200,2.2127,225.93,225.9,7.96957508]
[1733222638198,7.96957508,225.97,225.9,7.96957508]
[1733222638395,2.2126,225.94,225.9,10.18257508]
[1733222639797,2.2123,225.97,225.93,2.2127]
[1733222640102,2.2123,225.97,225.94,7.96957508]
[1733222640597,30.0,226.0,225.96,7.96957508]
[1733222641198,32.212,226.0,225.96,10.18197508]
[1733222642994,32.212,226.0,225.98,7.96957508]
[1733222643598,30.0,226.0,225.98,7.96957508]
[1733222647406,30.0,226.0,225.98,10.18177508]
[1733222648106,30.0,226.0,225.99,2.2121]
[1733222648304,30.0,226.0,225.98,10.00957508]
[1733222648702,30.0,226.0,225.99,2.2121]
[1733222650298,27.8874,226.0,225.99,2.2121]
[1733222650502,20.1454,226.0,225.99,2.2121]
[1733222653503,2.04,226.13,225.98,10.00957508]
[1733222653504,4.42,226.21,226.05,2.2114]
[1733222653701,1.361,226.18,226.09,7.96957508]
[1733222653909,1.361,226.18,226.11,7.96957508]
[1733222653910,2.2107,226.14,226.11,7.96957508]
[1733222654103,7.96957508,226.15,226.08,2.04]
[1733222654408,7.96957508,226.15,226.07,7.96957508]
[1733222654409,2.2111,226.1,226.07,7.96957508]
[1733222654709,7.96957508,226.15,226.07,10.18087508]
[1733222654903,1.361,226.18,226.07,7.96957508]
[1733222655109,2.211,226.11,226.07,7.96957508]
[1733222655310,2.211,226.11,226.02,2.2118]
[1733222655510,2.2111,226.1,226.07,7.96957508]
[1733222655809,2.2111,226.1,226.05,2.2115]
[1733222656007,2.2111,226.1,226.06,7.96957508]
[1733222656208,2.2109,226.11,226.06,7.96957508]
[1733222656407,2.2109,226.11,226.06,10.18087508]
[1733222657411,7.96957508,226.15,226.08,7.96957508]
[1733222657608,2.04,226.17,226.08,10.00957508]
[1733222657807,7.96957508,226.16,226.08,10.00957508]
[1733222658305,2.2107,226.14,226.08,10.00957508]
[1733222658508,2.2107,226.14,226.09,2.211]
[1733222660200,2.2107,226.14,226.1,10.18057508]
[1733222660403,2.2106,226.15,226.1,10.18057508]
[1733222661303,2.2104,226.17,226.12,2.2108]
[1733222661506,7.96957508,226.2,226.12,10.18037508]
[1733222661709,7.96957508,226.2,226.13,2.04]
[1733222662912,7.96957508,226.19,226.13,2.04]
[1733222663305,2.2104,226.17,226.13,2.04]
[1733222663508,7.96957508,226.17,226.1,7.96957508]
[1733222663811,7.96957508,226.17,226.1,4.251]
[1733222664012,7.96957508,226.15,226.1,2.04]
[1733222664513,2.2108,226.13,226.1,2.04]
[1733222665509,2.2108,226.13,226.08,7.96957508]
[1733222665703,2.2108,226.13,226.08,10.00957508]
[1733222665908,7.96957508,226.15,226.08,2.04]
[1733222666211,7.96957508,226.13,226.07,2.04]
[1733222666607,2.211,226.11,226.07,2.04]
[1733222667808,2.211,226.11,226.07,4.2513]
[1733222668612,2.04,226.18,226.07,12.22087508]
[1733222668910,2.2108,226.12,226.07,12.22087508]
[1733222669114,7.96957508,226.13,226.07,10.00957508]
[1733222669314,2.211,226.11,226.07,10.00957508]
[1733222669614,2.211,226.11,226.07,2.04]
[1733222670910,2.211,226.11,226.07,12.22087508]
[1733222671110,2.2108,226.13,226.07,10.00957508]
[1733222671815,2.04,226.18,226.07,10.00957508]
[1733222671816,2.04,226.18,226.09,7.96957508]
[1733222672011,2.2106,226.15,226.09,7.96957508]
[1733222672313,7.96957508,226.16,226.1,2.2109]
[1733222674020,2.2106,226.14,226.1,2.2109]
[1733222677519,2.2106,226.14,226.09,10.18067508]
[1733222679021,2.2106,226.14,226.09,7.96957508]
[1733222679221,2.2106,226.14,226.1,2.211]
[1733222680415,2.2107,226.14,226.1,2.211]
[1733222680621,2.586,226.22,226.09,7.96957508]
[1733222680819,7.96957508,226.18,226.09,7.96957508]
[1733222681017,2.2105,226.16,226.11,2.2108]
[1733222681217,2.2105,226.16,226.12,2.04]
[1733222681512,7.96957508,226.18,226.12,2.04]
[1733222682313,1.3035,226.22,226.12,2.04]
[1733222682513,7.96957508,226.18,226.12,2.04]
[1733222684024,2.2106,226.15,226.12,2.04]
[1733222684726,2.2105,226.15,226.12,4.2508]
[1733222686224,2.2105,226.16,226.12,12.22037508]
[1733222686423,7.96957508,226.2,226.13,2.2107]
[1733222686726,1.3224,226.33,226.18,7.96957508]
[1733222687026,2.2098,226.23,226.18,7.96957508]
[1733222687629,2.2098,226.23,226.17,2.04]
[1733222687829,2.2096,226.25,226.2,2.2101]
[1733222688123,7.96957508,226.29,226.21,7.96957508]
[1733222688330,7.96957508,226.29,226.22,2.04]
[1733222688625,2.2095,226.26,226.22,2.04]
[1733222691726,2.2094,226.28,226.22,4.2499]
[1733222691924,7.96957508,226.31,226.23,7.96957508]
[1733222692125,2.04,226.34,226.25,7.96957508]
[1733222692328,2.2092,226.29,226.25,7.96957508]
[1733222692627,7.96957508,226.32,226.25,7.96957508]
[1733222692830,2.2092,226.29,226.24,7.96957508]
[1733222693231,7.96957508,226.32,226.24,7.96957508]
[1733222693432,7.96957508,226.32,226.24,10.00957508]
[1733222694132,7.96957508,226.3,226.23,2.04]
[1733222694525,2.2096,226.25,226.22,10.00957508]
[1733222695236,2.2094,226.27,226.22,10.00957508]
[1733222695533,7.96957508,226.29,226.22,10.00957508]
[1733222696227,2.7671,226.33,226.22,10.00957508]
[1733222696428,2.2091,226.3,226.22,10.00957508]
[1733222696627,7.96957508,226.29,226.22,10.00957508]
[1733222696825,7.96957508,226.29,226.22,7.96957508]
[1733222697835,2.2094,226.27,226.22,7.96957508]
[1733222698226,7.96957508,226.27,226.09,3.9492]
[1733222698427,7.96957508,226.23,226.16,7.96957508]
[1733222698727,7.96957508,226.21,226.14,7.96957508]
[1733222699833,7.96957508,226.23,226.14,7.96957508]
[1733222700231,2.04,226.29,226.14,7.96957508]
[1733222700429,2.2102,226.19,226.14,7.96957508]
[1733222700629,2.2102,226.19,226.14,10.00957508]
[1733222702732,2.2103,226.18,226.13,2.2107]
[1733222702933,2.2103,226.18,226.14,10.00957508]
[1733222703534,7.96957508,226.23,226.14,12.22017508]
[1733222703736,2.04,226.29,226.14,12.22017508]
[1733222703930,2.21,226.21,226.16,2.2104]
[1733222704337,7.96957508,226.24,226.16,7.96957508]
[1733222704534,2.2101,226.21,226.15,10.18007508]
[1733222704737,2.2101,226.21,226.15,7.96957508]
[1733222705540,2.2101,226.21,226.16,2.2104]
[1733222705737,2.2101,226.21,226.14,2.04]
[1733222705738,7.96957508,226.23,226.14,2.04]
[1733222705937,7.96957508,226.23,226.14,10.00957508]
[1733222706135,7.96957508,226.23,226.14,12.22017508]
[1733222706336,2.2102,226.19,226.14,12.22017508]
[1733222707142,2.04,226.29,226.14,10.00957508]
[1733222707337,2.21,226.21,226.16,7.96957508]
[1733222707540,7.96957508,226.25,226.16,7.96957508]
[1733222707939,7.96957508,226.25,226.17,2.2103]
[1733222708133,7.96957508,226.25,226.16,7.96957508]
[1733222708641,2.2099,226.22,226.16,7.96957508]
[1733222709338,2.2099,226.22,226.17,2.2103]
[1733222709742,2.21,226.21,226.17,2.2103]
[1733222711043,2.2103,226.18,226.14,2.04]
[1733222711244,7.96957508,226.21,226.14,10.00957508]
[1733222711634,2.2102,226.19,226.14,12.22017508]
[1733222711837,7.96957508,226.23,226.14,10.00957508]
[1733222712041,7.96957508,226.23,226.16,7.96957508]
[1733222712845,7.96957508,226.23,226.14,2.04]
[1733222713046,7.96957508,226.23,226.14,10.00957508]
[1733222713445,2.2102,226.19,226.14,12.22017508]
[1733222714244,2.2102,226.19,226.15,2.2105]
[1733222714745,2.21,226.21,226.16,10.17997508]
[1733222714943,2.04,226.24,226.16,7.96957508]
[1733222715146,7.96957508,226.26,226.18,7.96957508]
[1733222715346,7.96957508,226.26,226.14,2.04]
[1733222716041,7.96957508,226.24,226.16,7.96957508]
[1733222716442,7.96957508,226.25,226.17,10.17987508]
[1733222716846,7.96957508,226.23,226.15,7.96957508]
[1733222717046,2.2101,226.2,226.15,2.2105]
[1733222717247,2.2101,226.2,226.15,10.18007508]
[1733222718747,2.2101,226.2,226.16,2.2104]
[1733222720441,7.96957508,226.21,226.14,2.04]
[1733222720643,7.96957508,226.19,226.14,2.04]
[1733222720854,7.96957508,226.19,226.09,3.9492]
[1733222721047,2.2106,226.15,226.1,12.22057508]
[1733222721651,2.2108,226.12,226.08,7.96957508]
[1733222722050,7.96957508,226.17,226.08,7.96957508]
[1733222722248,2.2106,226.15,226.1,7.96957508]
[1733222722753,2.2107,226.14,226.1,10.18057508]
[1733222723654,2.2107,226.14,226.1,7.96957508]
[1733222724153,2.2105,226.16,226.12,7.96957508]
[1733222724655,7.96957508,226.2,226.12,7.96957508]
[1733222724853,2.2106,226.15,226.1,10.18057508]
[1733222725652,7.96957508,226.18,226.1,7.96957508]
[1733222725653,2.2107,226.14,226.1,7.96957508]
[1733222725852,7.96957508,226.18,226.1,7.96957508]
[1733222726966,2.2107,226.14,226.1,7.96957508]
[1733222727461,7.96957508,226.18,226.1,7.96957508]
[1733222727662,2.2108,226.13,226.1,7.96957508]
[1733222728062,7.96957508,226.18,226.1,7.96957508]
[1733222728263,2.2106,226.14,226.1,7.96957508]
[1733222728863,2.2105,226.16,226.1,7.96957508]
[1733222729060,7.96957508,226.16,226.1,7.96957508]
[1733222729268,7.96957508,226.16,226.08,7.96957508]
[1733222729762,7.96957508,226.16,226.06,2.04]
[1733222730061,7.96957508,226.14,226.08,7.96957508]
[1733222730858,7.96957508,226.12,226.04,7.96957508]
[1733222731070,7.96957508,226.1,226.02,7.96957508]
[1733222731369,2.2115,226.06,226.02,7.96957508]
[1733222731867,7.96957508,226.1,226.02,7.96957508]
[1733222732070,7.96957508,226.1,226.0,2.04]
[1733222732071,2.2116,226.05,226.0,2.04]
[1733222732259,7.96957508,226.06,225.98,1.297]
[1733222732463,7.96957508,226.06,225.98,7.96957508]
[1733222732657,7.96957508,226.06,225.92,2.7392]
[1733222732864,2.04,226.07,225.95,7.96957508]
[1733222733166,2.2119,226.01,225.97,7.96957508]
[1733222734064,2.04,226.07,225.99,7.96957508]
[1733222734263,2.04,226.07,225.93,2.04]
[1733222734458,10.00957508,226.07,226.0,7.96957508]
[1733222734970,2.2117,226.04,226.0,7.96957508]
[1733222735661,2.2117,226.03,226.0,7.96957508]
[1733222735857,7.96957508,226.05,225.98,2.04]
[1733222736063,7.96957508,226.05,225.96,7.96957508]
[1733222736375,7.96957508,226.04,225.98,7.96957508]
[1733222736668,7.96957508,226.04,225.96,10.18197508]
[1733222737063,2.2119,226.01,225.96,10.18197508]
[1733222737467,2.2119,226.01,225.96,7.96957508]
[1733222737766,2.212,226.0,225.95,2.2125]
[1733222738069,2.212,226.0,225.96,7.96957508]
[1733222739370,2.2123,225.98,225.96,7.96957508]
[1733222739569,7.96957508,226.04,225.96,7.96957508]
[1733222739967,7.96957508,226.04,225.94,2.04]
[1733222739968,2.04,226.07,225.94,2.04]
[1733222740165,7.96957508,226.04,225.96,7.96957508]
[1733222740467,2.212,226.01,225.96,7.96957508]
[1733222741871,2.2119,226.02,225.96,7.96957508]
[1733222742072,7.96957508,226.04,225.96,10.18197508]
[1733222742572,2.2118,226.03,225.98,10.18177508]
[1733222743266,2.2115,226.06,226.0,10.18147508]
[1733222743469,2.2115,226.06,226.02,7.96957508]
[1733222745767,7.96957508,226.08,226.02,7.96957508]
[1733222745973,2.2115,226.05,226.0,10.18157508]
[1733222746866,7.96957508,226.04,225.92,2.7392]
[1733222747066,7.96957508,226.04,225.96,7.96957508]
[1733222747470,7.96957508,226.02,225.96,7.96957508]
[1733222747673,7.96957508,226.02,225.95,7.96957508]
[1733222748173,2.212,226.0,225.95,7.96957508]
[1733222749276,7.96957508,226.02,225.95,10.18207508]
[1733222749875,2.2121,226.0,225.95,10.18207508]
[1733222750475,2.2122,225.99,225.95,10.18207508]
[1733222751569,2.2122,225.99,225.93,2.04]
[1733222751773,2.2122,225.99,225.94,2.2126]
[1733222752775,2.2122,225.99,225.94,4.2526]
[1733222753278,2.212,226.01,225.95,7.96957508]
[1733222753679,7.96957508,226.04,225.95,7.96957508]
[1733222754075,2.2119,226.02,225.97,10.18187508]
[1733222754276,2.2119,226.02,225.97,7.96957508]
[1733222755081,2.2119,226.02,225.98,2.2122]
[1733222757376,2.2115,226.05,226.0,2.2119]
[1733222757679,7.96957508,226.07,226.01,7.96957508]
[1733222757873,7.96957508,226.07,225.99,10.00957508]
[1733222758983,2.2116,226.04,226.0,2.212]
[1733222759685,7.96957508,226.07,225.99,12.22157508]
[1733222760082,2.04,226.1,225.99,2.04]
[1733222760083,7.96957508,226.05,225.99,2.04]
[1733222760285,2.2117,226.03,225.99,2.04]
[1733222760880,7.96957508,226.03,225.96,7.96957508]
[1733222761079,7.96957508,226.03,225.97,2.04]
[1733222761481,2.2119,226.01,225.97,4.2523]
[1733222762689,7.96957508,225.99,225.92,1.3558]
[1733222762888,7.96957508,225.97,225.9,7.96957508]
[1733222763989,2.2126,225.95,225.91,2.2129]
[1733222767290,2.2124,225.96,225.92,2.2127]
[1733222767592,7.96957508,225.97,225.9,7.96957508]
[1733222767790,10.00957508,225.99,225.91,1.10733793]
[1733222767983,10.00957508,225.99,225.9,7.96957508]
[1733222768187,2.2125,225.96,225.92,2.2128]
[1733222771485,2.2121,226.0,225.95,2.2125]
[1733222771683,7.96957508,226.01,225.94,7.96957508]
[1733222772784,2.2122,225.99,225.92,10.00957508]
[1733222773089,7.96957508,225.97,225.89,7.96957508]
[1733222773483,7.96957508,225.97,225.9,2.87897748]
[1733222773691,7.96957508,225.95,225.91,1.10729903]
[1733222773885,7.96957508,225.95,225.89,7.96957508]
[1733222774089,7.96957508,225.95,225.9,3.3202828]
[1733222774090,10.18207508,225.95,225.9,3.3202828]
[1733222774287,10.18207508,225.95,225.89,7.96957508]
[1733222774486,7.96957508,225.97,225.89,7.96957508]
[1733222774683,2.2125,225.95,225.89,7.96957508]
[1733222775989,2.2125,225.95,225.91,2.2129]
[1733222776386,7.96957508,225.97,225.91,2.2129]
[1733222776587,7.96957508,225.95,225.87,11.30887508]
[1733222776790,7.96957508,225.95,225.87,3.3393]
[1733222777391,2.213,225.91,225.87,4.2533]
[1733222777691,7.96957508,225.93,225.85,1.3069]
[1733222777998,7.96957508,225.91,225.85,1.3069]
[1733222778594,2.2131,225.9,225.86,2.2134]
[1733222778994,7.96957508,225.91,225.85,1.3069]
[1733222779592,2.2132,225.88,225.85,1.3069]
[1733222779792,7.96957508,225.91,225.82,9.34267508]
[1733222780286,2.04,225.92,225.81,2.04]
[1733222780287,2.2135,225.85,225.81,2.2139]
[1733222780491,7.96957508,225.87,225.8,2.04]
[1733222780890,2.2137,225.84,225.8,2.04]
[1733222781890,2.2139,225.82,225.76,3.3808]
[1733222782095,2.2139,225.82,225.77,7.96957508]
[1733222782388,2.2139,225.82,225.77,10.18377508]
[1733222782594,7.96957508,225.84,225.77,2.2142]
[1733222782789,7.96957508,225.84,225.77,7.96957508]
[1733222782790,2.2139,225.81,225.77,7.96957508]
[1733222783396,2.2138,225.82,225.77,10.18377508]
[1733222785399,7.96957508,225.84,225.77,10.18377508]
[1733222785593,2.2139,225.81,225.77,10.18377508]
[1733222787001,2.2138,225.82,225.78,2.2142]
[1733222787790,2.2138,225.82,225.78,2.2141]
[1733222788803,2.2138,225.82,225.62,6.80413401]
[1733222788804,10.00957508,225.82,225.62,6.80413401]
[1733222788990,7.96957508,225.8,225.72,7.96957508]
[1733222789797,2.2143,225.77,225.72,7.96957508]
[1733222789996,7.96957508,225.8,225.72,7.96957508]
[1733222790194,2.04,225.82,225.77,2.2142]
[1733222790195,2.2139,225.81,225.77,2.2142]
[1733222790394,2.2139,225.81,225.76,7.96957508]
[1733222790395,7.96957508,225.85,225.76,7.96957508]
[1733222790606,2.04,225.85,225.78,7.96957508]
[1733222791302,7.96957508,225.86,225.79,2.2141]
[1733222791497,2.04,225.89,225.82,7.96957508]
[1733222792297,2.2133,225.87,225.82,10.18337508]
[1733222792499,2.688,225.91,225.84,7.96957508]
[1733222793798,1.2906,225.91,225.84,7.96957508]
[1733222793998,2.2131,225.89,225.84,10.18317508]
[1733222794697,2.2131,225.89,225.84,7.96957508]
[1733222794897,7.96957508,225.9,225.83,2.2137]
[1733222795103,2.2132,225.88,225.83,2.2137]
[1733222795496,1.2906,225.91,225.78,2.04]
[1733222795497,2.2135,225.85,225.78,2.04]
[1733222795804,2.2135,225.85,225.8,7.96957508]
[1733222796007,7.96957508,225.86,225.8,10.18347508]
[1733222796501,7.96957508,225.88,225.8,10.18347508]
[1733222796697,1.2972,225.96,225.8,7.96957508]
[1733222796904,3.3372,225.96,225.84,7.96957508]
[1733222797105,10.18247508,225.92,225.84,7.96957508]
[1733222797302,2.2129,225.92,225.84,7.96957508]
[1733222798406,2.2129,225.92,225.86,2.2134]
[1733222798606,2.2131,225.89,225.83,2.04]
[1733222799697,7.96957508,225.93,225.84,7.96957508]
[1733222799900,7.96957508,225.93,225.86,7.96957508]
[1733222800909,2.2129,225.92,225.86,10.18297508]
[1733222801910,2.04,225.94,225.86,7.96957508]
[1733222802107,2.2127,225.93,225.87,2.2132]
[1733222802308,10.18227508,225.93,225.87,2.2132]
[1733222802704,2.2128,225.92,225.87,2.2132]
[1733222804307,7.96957508,225.89,225.78,2.04]
[1733222804509,10.18267508,225.89,225.84,2.2135]
[1733222804806,7.96957508,225.91,225.83,7.96957508]
[1733222805009,7.96957508,225.91,225.83,10.00957508]
[1733222805207,2.2131,225.89,225.85,2.2135]
[1733222805908,2.2133,225.87,225.82,2.04]
[1733222806608,2.04,225.94,225.84,7.96957508]
[1733222806806,7.96957508,225.91,225.84,7.96957508]
[1733222807003,7.96957508,225.91,225.85,2.2134]
[1733222807211,7.96957508,225.91,225.84,7.96957508]
[1733222807408,2.2129,225.92,225.84,7.96957508]
[1733222807810,7.96957508,225.93,225.84,7.96957508]
[1733222808109,7.96957508,225.91,225.86,2.2134]
[1733222808613,10.18257508,225.91,225.86,2.2134]